[Event "2nd Namma Bengaluru Open-B 2025"]
[Site "Bengaluru"]
[Date "2025.04.10"]
[Round "1.1"]
[White "Aditya Trehan"]
[Black "Nayak, Biswajit"]
[Result "0-1"]
[Annotator "NA"]
[ECO "B23"]
[WhiteElo "1575"]
[BlackElo "1979"]
[PlyCount "104"]
[EventDate "2025.04.10"]
[EventType "swiss"]
[EventCountry "IND"]
[SourceTitle "playchess.com"]
[Source "ChessBase"]
[SourceQuality "1"]
[TimeControl "3600+30"]

1. e4 {[%emt 0:00:03]} c5 {[%emt 0:00:18]} 2. Nc3 {[%emt 0:00:15]} a6 {[%emt 0:00:36]} 3. f4 {[%emt 0:00:34]} e6 {[%emt 0:00:16]} 4. Nf3 {[%emt 0:00:14]} d5 {[%emt 0:00:20]} 5. d3 {[%emt 0:01:09]} Nf6 {[%emt 0:00:20]} 6. e5 {[%emt 0:02:53]} Nfd7 {[%emt 0:00:10]} 7. Be2 {[%emt 0:00:27]} b5 {[%emt 0:00:19]} 8. a3 {[%emt 0:01:02]} Nc6 {[%emt 0:00:23]} 9. O-O {[%emt 0:00:58]} Be7 {[%emt 0:00:29]} 10. Kh1 {[%emt 0:01:09]} Rb8 {[%emt 0:00:36]} 11. Bd2 {[%emt 0:02:27]} O-O {[%emt 0:01:02]} 12. Na2 {[%emt 0:01:20]} d4 {[%emt 0:00:46]} 13. b4 {[%emt 0:01:19]} Bb7 {[%emt 0:00:49]} 14. bxc5 {[%emt 0:01:47]} Bxc5 {[%emt 0:01:21]} 15. Bb4 {[%emt 0:00:30]} a5 {[%emt 0:02:05]} 16. Bxc5 {[%emt 0:00:58]} Nxc5 {[%emt 0:00:10]} 17. Rb1 {[%emt 0:01:24]} Ba8 {[%emt 0:02:10]} 18. Nd2 {[%emt 0:02:30]} Ne7 {[%emt 0:00:41]} 19. Bf3 {[%emt 0:02:00]} Nd5 {[%emt 0:00:41]} 20. Qc1 {[%emt 0:03:28]} Ne3 {[%emt 0:03:57]} 21. Rf2 {[%emt 0:02:18]} Bd5 {[%emt 0:00:37]} 22. Bxd5 {[%emt 0:01:30]} Qxd5 {[%emt 0:00:19]} 23. Nb3 {[%emt 0:00:35]} Rbc8 {[%emt 0:01:43]} 24. Qb2 {[%emt 0:03:06]} Nxb3 {[%emt 0:03:30]} 25. Qxb3 {[%emt 0:06:35]} Qxb3 {[%emt 0:04:19]} 26. cxb3 {[%emt 0:00:57]} f6 {[%emt 0:01:10]} 27. exf6 {[%emt 0:01:44]} gxf6 {[%emt 0:00:17]} 28. Rc1 {[%emt 0:01:38]} Kf7 {[%emt 0:03:37]} 29. h3 {[%emt 0:01:31]} Ke7 {[%emt 0:00:44]} 30. Re2 {[%emt 0:01:16]} Rxc1+ {[%emt 0:00:37]} 31. Nxc1 {[%emt 0:00:23]} Rc8 {[%emt 0:00:15]} 32. Na2 {[%emt 0:00:26]} Kd6 {[%emt 0:00:17]} 33. Kg1 {[%emt 0:01:31]} e5 {[%emt 0:00:16]} 34. fxe5+ {[%emt 0:00:49]} fxe5 {[%emt 0:00:03]} 35. Rd2 {[%emt 0:06:16]} Rf8 {[%emt 0:01:43]} 36. Rf2 {[%emt 0:00:37]} Rc8 {[%emt 0:00:30]} 37. Rd2 {[%emt 0:00:22]} Kd5 {[%emt 0:00:18]} 38. g3 {[%emt 0:02:46]} Rg8 {[%emt 0:04:20]} 39. Kf2 {[%emt 0:01:59]} Rf8+ {[%emt 0:00:27]} 40. Ke2 {[%emt 0:00:40]} Rf1 {[%emt 0:00:38]} 41. h4 {[%emt 0:01:44]} h5 {[%emt 0:00:53]} 42. b4 {[%emt 0:00:22]} a4 {[%emt 0:00:36]} 43. Rb2 {[%emt 0:00:45]} e4 {[%emt 0:01:48]} 44. dxe4+ {[%emt 0:01:07]} Kxe4 {[%emt 0:00:03]} 45. Rd2 {[%emt 0:00:17]} Rg1 {[%emt 0:00:39]} 46. Kf2 {[%emt 0:01:20]} Rg2+ {[%emt 0:00:26]} 47. Ke1 {[%emt 0:00:05]} Rxg3 {[%emt 0:00:08]} 48. Rf2 {[%emt 0:00:54]} Rg1+ {[%emt 0:00:08]} 49. Ke2 {[%emt 0:00:46]} Ra1 {[%emt 0:00:13]} 50. Rf1 {[%emt 0:01:13]} d3+ {[%emt 0:00:26]} 51. Kd2 {[%emt 0:00:02]} Rxa2+ {[%emt 0:00:05]} 52. Kc3 {[%emt 0:00:05]} Rc2# {[%emt 0:00:22]} 0-1

[Event "2nd Namma Bengaluru Open-B 2025"]
[Site "Bengaluru"]
[Date "2025.04.10"]
[Round "1.2"]
[White "Prashanth J Naik"]
[Black "Gadde Kaarthika"]
[Result "1-0"]
[Annotator "NA"]
[ECO "A58"]
[WhiteElo "1979"]
[BlackElo "1575"]
[PlyCount "71"]
[EventDate "2025.04.10"]
[EventType "swiss"]
[EventCountry "IND"]
[SourceTitle "playchess.com"]
[Source "ChessBase"]
[SourceQuality "1"]
[TimeControl "3600+30"]

1. d4 {[%emt 0:01:26]} Nf6 {[%emt 0:00:10]} 2. c4 {[%emt 0:00:20]} c5 {[%emt 0:00:24]} 3. d5 {[%emt 0:00:08]} b5 {[%emt 0:00:09]} 4. cxb5 {[%emt 0:04:34]} a6 {[%emt 0:00:17]} 5. bxa6 {[%emt 0:00:03]} Bxa6 {[%emt 0:00:08]} 6. Nc3 {[%emt 0:00:06]} g6 {[%emt 0:00:08]} 7. e4 {[%emt 0:00:03]} d6 {[%emt 0:00:08]} 8. Bxa6 {[%emt 0:20:11]} Nxa6 {[%emt 0:00:13]} 9. f4 {[%emt 0:00:40]} Nb4 {[%emt 0:03:11]} 10. Nf3 {[%emt 0:04:05]} c4 {[%emt 0:05:14]} 11. O-O {[%emt 0:01:54]} Nd3 {[%emt 0:01:52]} 12. Qe2 {[%emt 0:09:10]} Bg7 {[%emt 0:08:41]} 13. Kh1 {[%emt 0:02:44]} O-O {[%emt 0:03:11]} 14. Be3 {[%emt 0:01:27]} Ng4 {[%emt 0:08:56]} 15. Bd4 {[%emt 0:05:36]} Nf6 {[%emt 0:18:22]} 16. Ne1 {[%emt 0:03:06]} Qb8 {[%emt 0:12:50]} 17. Nxd3 {[%emt 0:06:05]} cxd3 {[%emt 0:00:12]} 18. Qxd3 {[%emt 0:01:06]} Qxb2 {[%emt 0:03:32]} 19. a4 {[%emt 0:00:13]} Qb7 {[%emt 0:00:51]} 20. Rfb1 {[%emt 0:01:43]} Qa6 {[%emt 0:00:51]} 21. Nb5 {[%emt 0:04:05]} Rfb8 {[%emt 0:01:01]} 22. h3 {[%emt 0:00:31]} Qc8 {[%emt 0:00:29]} 23. Rc1 {[%emt 0:00:26]} Qd8 {[%emt 0:00:06]} 24. Na7 {[%emt 0:01:35]} Qd7 {[%emt 0:00:54]} 25. Nc6 {[%emt 0:00:21]} Rc8 {[%emt 0:00:19]} 26. a5 {[%emt 0:00:17]} Ne8 {[%emt 0:00:36]} 27. Rab1 {[%emt 0:00:57]} Nc7 {[%emt 0:00:25]} 28. Rb7 {[%emt 0:00:08]} Qe8 {[%emt 0:00:33]} 29. Bb6 {[%emt 0:00:15]} Na6 {[%emt 0:00:33]} 30. Nxe7+ {[%emt 0:00:07]} Kh8 {[%emt 0:00:19]} 31. Rxc8 {[%emt 0:01:43]} Rxc8 {[%emt 0:00:16]} 32. Qxa6 {[%emt 0:00:06]} Rc1+ {[%emt 0:00:51]} 33. Kh2 {[%emt 0:00:03]} Bh6 {[%emt 0:00:32]} 34. Bd4+ {[%emt 0:00:33]} Bg7 {[%emt 0:00:21]} 35. Qb6 {[%emt 0:00:23]} h6 {[%emt 0:00:44]} 36. Rb8 {[%emt 0:00:10]} 1-0

[Event "2nd Namma Bengaluru Open-B 2025"]
[Site "Bengaluru"]
[Date "2025.04.10"]
[Round "1.3"]
[White "Himamshu Shrivastav P"]
[Black "Chakravarti, K.."]
[Result "0-1"]
[Annotator "NA"]
[ECO "A52"]
[WhiteElo "1574"]
[BlackElo "1930"]
[PlyCount "78"]
[EventDate "2025.04.10"]
[EventType "swiss"]
[EventCountry "IND"]
[SourceTitle "playchess.com"]
[Source "ChessBase"]
[SourceQuality "1"]
[TimeControl "3600+30"]

1. d4 {[%emt 0:00:55]} Nf6 {[%emt 0:00:17]} 2. c4 {[%emt 0:00:31]} e5 {[%emt 0:00:11]} 3. dxe5 {[%emt 0:03:03]} Ng4 {[%emt 0:00:07]} 4. Nf3 {[%emt 0:03:10]} Bc5 {[%emt 0:00:10]} 5. e3 {[%emt 0:03:11]} Nc6 {[%emt 0:00:08]} 6. Bd2 {[%emt 0:03:31]} Ngxe5 {[%emt 0:03:51]} 7. Nxe5 {[%emt 0:02:50]} Nxe5 {[%emt 0:00:03]} 8. Bc3 {[%emt 0:01:06]} Qe7 {[%emt 0:01:39]} 9. Nd2 {[%emt 0:06:49]} O-O {[%emt 0:01:32]} 10. Nf3 {[%emt 0:04:19]} Ng4 {[%emt 0:04:28]} 11. Qc2 {[%emt 0:05:56]} Bxe3 {[%emt 0:02:12]} 12. fxe3 {[%emt 0:04:44]} Nxe3 {[%emt 0:00:06]} 13. Qe2 {[%emt 0:00:44]} Re8 {[%emt 0:17:24]} 14. Kf2 {[%emt 0:05:52]} Ng4+ {[%emt 0:00:40]} 15. Ke1 {[%emt 0:02:26]} Qf8 {[%emt 0:00:17]} 16. Ne5 {[%emt 0:03:02]} Nxe5 {[%emt 0:00:08]} 17. Kd2 {[%emt 0:03:36]} d6 {[%emt 0:00:23]} 18. h3 {[%emt 0:03:54]} g6 {[%emt 0:00:43]} 19. Re1 {[%emt 0:02:19]} Qh6+ {[%emt 0:00:54]} 20. Kc2 {[%emt 0:01:34]} Bf5+ {[%emt 0:04:15]} 21. Kb3 {[%emt 0:01:12]} b5 {[%emt 0:02:14]} 22. cxb5 {[%emt 0:02:02]} a6 {[%emt 0:00:27]} 23. g4 {[%emt 0:01:50]} Be6+ {[%emt 0:01:35]} 24. Kc2 {[%emt 0:00:17]} axb5 {[%emt 0:01:19]} 25. Bg2 {[%emt 0:01:06]} Bc4 {[%emt 0:02:28]} 26. Qd2 {[%emt 0:01:13]} Qxd2+ {[%emt 0:01:56]} 27. Kxd2 {[%emt 0:00:06]} Rxa2 {[%emt 0:00:29]} 28. Bxe5 {[%emt 0:01:55]} Rxe5 {[%emt 0:01:16]} 29. Rxe5 {[%emt 0:00:17]} dxe5 {[%emt 0:00:07]} 30. Kc3 {[%emt 0:00:37]} Kf8 {[%emt 0:01:35]} 31. Rd1 {[%emt 0:00:37]} Be6 {[%emt 0:02:27]} 32. Rd8+ {[%emt 0:00:43]} Ke7 {[%emt 0:00:32]} 33. Rh8 {[%emt 0:00:08]} c5 {[%emt 0:00:35]} 34. Rxh7 {[%emt 0:01:01]} b4+ {[%emt 0:00:08]} 35. Kc2 {[%emt 0:00:42]} c4 {[%emt 0:00:10]} 36. Kc1 {[%emt 0:00:22]} c3 {[%emt 0:00:21]} 37. Be4 {[%emt 0:00:39]} Rxb2 {[%emt 0:00:58]} 38. Bxg6 {[%emt 0:00:26]} Rh2 {[%emt 0:00:12]} 39. Bf5 {[%emt 0:00:40]} b3 {[%emt 0:00:19]} 0-1

[Event "2nd Namma Bengaluru Open-B 2025"]
[Site "Bengaluru"]
[Date "2025.04.10"]
[Round "1.4"]
[White "Anurag, Jaiswal"]
[Black "Naresh Kumar Davuluri"]
[Result "1-0"]
[Annotator "NA"]
[ECO "E05"]
[WhiteElo "1923"]
[BlackElo "1574"]
[PlyCount "115"]
[EventDate "2025.04.10"]
[EventType "swiss"]
[EventCountry "IND"]
[SourceTitle "playchess.com"]
[Source "ChessBase"]
[SourceQuality "1"]
[TimeControl "3600+30"]

1. d4 {[%emt 0:00:05]} d5 {[%emt 0:00:08]} 2. c4 {[%emt 0:00:14]} e6 {[%emt 0:00:11]} 3. Nf3 {[%emt 0:00:10]} Be7 {[%emt 0:00:17]} 4. g3 {[%emt 0:00:08]} Nf6 {[%emt 0:00:14]} 5. Bg2 {[%emt 0:00:09]} O-O {[%emt 0:00:15]} 6. O-O {[%emt 0:00:05]} dxc4 {[%emt 0:00:18]} 7. Qc2 {[%emt 0:00:10]} Nc6 {[%emt 0:00:19]} 8. e3 {[%emt 0:01:47]} Na5 {[%emt 0:00:54]} 9. Ne5 {[%emt 0:03:37]} c5 {[%emt 0:00:38]} 10. dxc5 {[%emt 0:00:35]} Qc7 {[%emt 0:00:45]} 11. Nxc4 {[%emt 0:01:27]} Qxc5 {[%emt 0:00:39]} 12. Nba3 {[%emt 0:00:27]} Rb8 {[%emt 0:01:29]} 13. Bd2 {[%emt 0:00:32]} Nxc4 {[%emt 0:00:34]} 14. Qxc4 {[%emt 0:00:26]} Qxc4 {[%emt 0:05:42]} 15. Nxc4 {[%emt 0:01:13]} Bd7 {[%emt 0:03:36]} 16. Ne5 {[%emt 0:02:45]} Bb5 {[%emt 0:01:49]} 17. Rfc1 {[%emt 0:00:03]} Bd6 {[%emt 0:01:24]} 18. Nc4 {[%emt 0:00:23]} Be7 {[%emt 0:04:30]} 19. a4 {[%emt 0:00:25]} Bxc4 {[%emt 0:01:00]} 20. Rxc4 {[%emt 0:01:58]} Rfd8 {[%emt 0:01:38]} 21. Be1 {[%emt 0:00:35]} Rd7 {[%emt 0:00:41]} 22. Bf3 {[%emt 0:01:11]} Rbd8 {[%emt 0:02:14]} 23. Rac1 {[%emt 0:00:36]} b6 {[%emt 0:01:14]} 24. Rc8 {[%emt 0:00:31]} Rxc8 {[%emt 0:00:50]} 25. Rxc8+ {[%emt 0:00:02]} Rd8 {[%emt 0:00:08]} 26. Rc4 {[%emt 0:02:59]} h6 {[%emt 0:04:37]} 27. Kf1 {[%emt 0:00:15]} a5 {[%emt 0:08:08]} 28. Rc6 {[%emt 0:01:41]} Rd6 {[%emt 0:00:22]} 29. Rc8+ {[%emt 0:00:30]} Rd8 {[%emt 0:00:24]} 30. Rxd8+ {[%emt 0:00:32]} Bxd8 {[%emt 0:00:07]} 31. Ke2 {[%emt 0:00:10]} Kf8 {[%emt 0:00:50]} 32. Kd3 {[%emt 0:00:08]} Ke7 {[%emt 0:00:06]} 33. Kc4 {[%emt 0:00:13]} Kd6 {[%emt 0:00:07]} 34. Bc3 {[%emt 0:00:31]} g6 {[%emt 0:00:24]} 35. Kb5 {[%emt 0:00:25]} Nd7 {[%emt 0:00:27]} 36. h4 {[%emt 0:03:39]} h5 {[%emt 0:00:24]} 37. Bg2 {[%emt 0:00:45]} e5 {[%emt 0:04:27]} 38. f4 {[%emt 0:00:30]} exf4 {[%emt 0:00:14]} 39. exf4 {[%emt 0:00:14]} Kc7 {[%emt 0:05:13]} 40. Bd4 {[%emt 0:00:44]} Bf6 {[%emt 0:00:34]} 41. Bf2 {[%emt 0:01:08]} Be7 {[%emt 0:15:10]} 42. Bd5 {[%emt 0:01:32]} f6 {[%emt 0:00:16]} 43. Bf7 {[%emt 0:00:37]} g5 {[%emt 0:00:15]} 44. Bxh5 {[%emt 0:00:38]} Nc5 {[%emt 0:01:05]} 45. Bg6 {[%emt 0:03:12]} gxh4 {[%emt 0:00:17]} 46. gxh4 {[%emt 0:00:08]} Nd7 {[%emt 0:02:10]} 47. Bf5 {[%emt 0:00:28]} Nc5 {[%emt 0:02:37]} 48. h5 {[%emt 0:00:40]} Bf8 {[%emt 0:00:16]} 49. Bd4 {[%emt 0:03:16]} Bh6 {[%emt 0:00:49]} 50. Bxc5 {[%emt 0:00:05]} bxc5 {[%emt 0:00:10]} 51. Kxa5 {[%emt 0:00:25]} Bxf4 {[%emt 0:00:26]} 52. b3 {[%emt 0:00:12]} Kd6 {[%emt 0:00:54]} 53. Kb5 {[%emt 0:00:29]} Ke5 {[%emt 0:00:24]} 54. Bh3 {[%emt 0:00:53]} Kd4 {[%emt 0:00:41]} 55. a5 {[%emt 0:00:13]} Kc3 {[%emt 0:00:09]} 56. a6 {[%emt 0:00:23]} Bb8 {[%emt 0:00:31]} 57. h6 {[%emt 0:00:28]} Kxb3 {[%emt 0:00:08]} 58. h7 {[%emt 0:00:06]} 1-0

[Event "2nd Namma Bengaluru Open-B 2025"]
[Site "Bengaluru"]
[Date "2025.04.10"]
[Round "1.5"]
[White "Sanchit P Sugur"]
[Black "Afreed T Khan"]
[Result "0-1"]
[Annotator "NA"]
[ECO "C54"]
[WhiteElo "1574"]
[BlackElo "1921"]
[PlyCount "118"]
[EventDate "2025.04.10"]
[EventType "swiss"]
[EventCountry "IND"]
[SourceTitle "playchess.com"]
[Source "ChessBase"]
[SourceQuality "1"]
[TimeControl "3600+30"]

1. e4 {[%emt 0:00:03]} e5 {[%emt 0:00:28]} 2. Nf3 {[%emt 0:00:04]} Nc6 {[%emt 0:00:05]} 3. Bc4 {[%emt 0:00:06]} Nf6 {[%emt 0:00:07]} 4. d3 {[%emt 0:00:08]} Bc5 {[%emt 0:00:15]} 5. c3 {[%emt 0:00:06]} a5 {[%emt 0:00:47]} 6. a4 {[%emt 0:03:12]} d6 {[%emt 0:00:13]} 7. h3 {[%emt 0:00:31]} h6 {[%emt 0:00:07]} 8. Nbd2 {[%emt 0:00:22]} O-O {[%emt 0:01:00]} 9. O-O {[%emt 0:00:17]} Bb6 {[%emt 0:03:23]} 10. Re1 {[%emt 0:00:41]} Nh5 {[%emt 0:00:42]} 11. Nf1 {[%emt 0:02:43]} Qf6 {[%emt 0:02:05]} 12. Be3 {[%emt 0:04:14]} Bxe3 {[%emt 0:02:46]} 13. Nxe3 {[%emt 0:00:31]} Nf4 {[%emt 0:00:44]} 14. Nd5 {[%emt 0:03:31]} Nxd5 {[%emt 0:02:47]} 15. Bxd5 {[%emt 0:00:09]} Ne7 {[%emt 0:00:07]} 16. Bb3 {[%emt 0:01:07]} Ng6 {[%emt 0:00:13]} 17. Nh2 {[%emt 0:12:24]} Nf4 {[%emt 0:04:42]} 18. Qf3 {[%emt 0:01:47]} Kh8 {[%emt 0:01:11]} 19. Rad1 {[%emt 0:02:54]} Be6 {[%emt 0:05:27]} 20. Bc2 {[%emt 0:01:06]} Qg5 {[%emt 0:04:14]} 21. Kh1 {[%emt 0:03:28]} f5 {[%emt 0:03:25]} 22. Qg3 {[%emt 0:16:44]} Qxg3 {[%emt 0:03:47]} 23. fxg3 {[%emt 0:00:02]} Nh5 {[%emt 0:00:16]} 24. Re3 {[%emt 0:00:17]} fxe4 {[%emt 0:02:07]} 25. dxe4 {[%emt 0:00:36]} Rf2 {[%emt 0:00:18]} 26. Rc1 {[%emt 0:01:03]} Raf8 {[%emt 0:05:24]} 27. Bd1 {[%emt 0:01:52]} g6 {[%emt 0:02:41]} 28. Bxh5 {[%emt 0:02:57]} gxh5 {[%emt 0:00:41]} 29. b4 {[%emt 0:00:10]} Ra2 {[%emt 0:01:24]} 30. Nf3 {[%emt 0:02:37]} Rxa4 {[%emt 0:00:52]} 31. Rb1 {[%emt 0:00:12]} b6 {[%emt 0:00:32]} 32. bxa5 {[%emt 0:01:30]} Rxa5 {[%emt 0:00:11]} 33. Kg1 {[%emt 0:00:42]} Rfa8 {[%emt 0:01:48]} 34. Nh4 {[%emt 0:01:05]} Ra1 {[%emt 0:02:12]} 35. Ree1 {[%emt 0:00:11]} Rxb1 {[%emt 0:00:33]} 36. Rxb1 {[%emt 0:00:06]} Bc4 {[%emt 0:01:54]} 37. Rb4 {[%emt 0:00:49]} Ra1+ {[%emt 0:00:22]} 38. Kf2 {[%emt 0:00:06]} b5 {[%emt 0:00:14]} 39. Ng6+ {[%emt 0:00:38]} Kh7 {[%emt 0:00:32]} 40. Ne7 {[%emt 0:00:22]} Ra2+ {[%emt 0:00:33]} 41. Kg1 {[%emt 0:01:39]} Rc2 {[%emt 0:01:46]} 42. Nd5 {[%emt 0:01:20]} c6 {[%emt 0:00:24]} 43. Ne7 {[%emt 0:00:32]} Rc1+ {[%emt 0:00:23]} 44. Kf2 {[%emt 0:00:02]} c5 {[%emt 0:00:08]} 45. Rxc4 {[%emt 0:00:59]} bxc4 {[%emt 0:00:09]} 46. Nd5 {[%emt 0:00:02]} Rc2+ {[%emt 0:01:39]} 47. Kf3 {[%emt 0:00:05]} Rd2 {[%emt 0:01:01]} 48. Nf6+ {[%emt 0:00:15]} Kg6 {[%emt 0:00:07]} 49. Nd5 {[%emt 0:00:05]} Rd3+ {[%emt 0:00:27]} 50. Kf2 {[%emt 0:00:09]} Rxd5 {[%emt 0:00:53]} 51. exd5 {[%emt 0:00:07]} Kf5 {[%emt 0:00:05]} 52. Ke3 {[%emt 0:00:06]} e4 {[%emt 0:00:09]} 53. g4+ {[%emt 0:00:04]} hxg4 {[%emt 0:00:07]} 54. hxg4+ {[%emt 0:00:05]} Kxg4 {[%emt 0:00:54]} 55. Kxe4 {[%emt 0:00:06]} h5 {[%emt 0:00:03]} 56. g3 {[%emt 0:00:24]} Kxg3 {[%emt 0:00:07]} 57. Kf5 {[%emt 0:00:02]} h4 {[%emt 0:00:11]} 58. Ke6 {[%emt 0:00:03]} h3 {[%emt 0:00:05]} 59. Kxd6 {[%emt 0:00:06]} h2 {[%emt 0:00:02]} 0-1

[Event "2nd Namma Bengaluru Open-B 2025"]
[Site "Bengaluru"]
[Date "2025.04.10"]
[Round "1.6"]
[White "Karthikeyan, J.."]
[Black "Bhuvana Koppineni"]
[Result "1/2-1/2"]
[Annotator "NA"]
[ECO "A01"]
[WhiteElo "1916"]
[BlackElo "1573"]
[PlyCount "150"]
[EventDate "2025.04.10"]
[EventType "swiss"]
[EventCountry "IND"]
[SourceTitle "playchess.com"]
[Source "ChessBase"]
[SourceQuality "1"]
[TimeControl "3600+30"]

1. b3 {[%emt 0:00:12]} e5 {[%emt 0:00:32]} 2. Bb2 {[%emt 0:00:07]} Nc6 {[%emt 0:00:21]} 3. e3 {[%emt 0:00:12]} d5 {[%emt 0:00:33]} 4. Bb5 {[%emt 0:00:08]} Bd6 {[%emt 0:02:12]} 5. f4 {[%emt 0:06:39]} Qe7 {[%emt 0:07:27]} 6. Nf3 {[%emt 0:01:29]} Bg4 {[%emt 0:01:42]} 7. h3 {[%emt 0:00:52]} Bxf3 {[%emt 0:06:44]} 8. Qxf3 {[%emt 0:00:06]} Nf6 {[%emt 0:08:35]} 9. fxe5 {[%emt 0:02:40]} Bxe5 {[%emt 0:00:47]} 10. Nc3 {[%emt 0:00:09]} Ne4 {[%emt 0:05:32]} 11. O-O-O {[%emt 0:01:06]} Nxc3 {[%emt 0:10:30]} 12. dxc3 {[%emt 0:00:08]} O-O-O {[%emt 0:01:30]} 13. Rxd5 {[%emt 0:02:35]} Rxd5 {[%emt 0:00:30]} 14. Qxd5 {[%emt 0:00:07]} Rd8 {[%emt 0:02:27]} 15. Qf3 {[%emt 0:00:27]} Qd7 {[%emt 0:02:59]} 16. Bd3 {[%emt 0:02:29]} g6 {[%emt 0:01:53]} 17. Rd1 {[%emt 0:02:40]} Kb8 {[%emt 0:01:27]} 18. g4 {[%emt 0:00:31]} f6 {[%emt 0:00:49]} 19. Be2 {[%emt 0:00:23]} Qe7 {[%emt 0:00:43]} 20. Rxd8+ {[%emt 0:00:14]} Qxd8 {[%emt 0:00:12]} 21. Bd3 {[%emt 0:01:47]} Qd6 {[%emt 0:02:35]} 22. h4 {[%emt 0:01:38]} Ne7 {[%emt 0:01:59]} 23. h5 {[%emt 0:02:02]} Nd5 {[%emt 0:03:57]} 24. hxg6 {[%emt 0:43:49]} hxg6 {[%emt 0:00:17]} 25. Bxg6 {[%emt 0:00:00]} Nxc3 {[%emt 0:00:59]} 26. Bxc3 {[%emt 0:00:00]} Bxc3 {[%emt 0:00:23]} 27. Bd3 {[%emt 0:00:00]} Qa3+ {[%emt 0:01:53]} 28. Kd1 {[%emt 0:00:00]} Qxa2 {[%emt 0:00:16]} 29. Ke2 {[%emt 0:00:00]} Qb1 {[%emt 0:00:46]} 30. Kf2 {[%emt 0:00:00]} Qe1+ {[%emt 0:00:23]} 31. Kg2 {[%emt 0:00:00]} Qh4 {[%emt 0:01:28]} 32. Bf5 {[%emt 0:00:00]} a6 {[%emt 0:00:54]} 33. Qd5 {[%emt 0:00:00]} Be5 {[%emt 0:00:21]} 34. Qf3 {[%emt 0:00:00]} Qh2+ {[%emt 0:00:24]} 35. Kf1 {[%emt 0:00:00]} Qg3 {[%emt 0:01:28]} 36. Qxg3 {[%emt 0:00:00]} Bxg3 {[%emt 0:00:05]} 37. Kg2 {[%emt 0:00:00]} Bh4 {[%emt 0:00:16]} 38. Kf3 {[%emt 0:00:00]} c6 {[%emt 0:00:25]} 39. Ke4 {[%emt 0:00:00]} a5 {[%emt 0:00:48]} 40. Be6 {[%emt 0:00:00]} Bg5 {[%emt 0:00:26]} 41. Kd4 {[%emt 0:00:00]} c5+ {[%emt 0:00:51]} 42. Ke4 {[%emt 0:00:00]} Kc7 {[%emt 0:00:31]} 43. Kf5 {[%emt 0:00:00]} Kd6 {[%emt 0:00:34]} 44. e4 {[%emt 0:00:00]} Bh4 {[%emt 0:00:23]} 45. Bc4 {[%emt 0:00:00]} b6 {[%emt 0:01:18]} 46. Bb5 {[%emt 0:00:00]} Ke7 {[%emt 0:00:35]} 47. e5 {[%emt 0:00:00]} fxe5 {[%emt 0:00:49]} 48. Kxe5 {[%emt 0:00:00]} Bg3+ {[%emt 0:00:32]} 49. Kd5 {[%emt 0:00:00]} Bc7 {[%emt 0:00:23]} 50. Kc6 {[%emt 0:00:00]} Bd8 {[%emt 0:00:18]} 51. Bc4 {[%emt 0:00:00]} Kf8 {[%emt 0:00:21]} 52. Kd7 {[%emt 0:00:00]} Bf6 {[%emt 0:00:40]} 53. Kc7 {[%emt 0:00:00]} Bc3 {[%emt 0:00:13]} 54. Kxb6 {[%emt 0:00:00]} Bb4 {[%emt 0:00:13]} 55. Kc6 {[%emt 0:00:00]} Kg7 {[%emt 0:00:28]} 56. Kd5 {[%emt 0:00:00]} Kf6 {[%emt 0:00:21]} 57. Ke4 {[%emt 0:00:00]} Kg5 {[%emt 0:00:18]} 58. Be6 {[%emt 0:00:00]} Bc3 {[%emt 0:00:33]} 59. Kd5 {[%emt 0:00:00]} Bb4 {[%emt 0:00:12]} 60. Kc4 {[%emt 0:00:00]} Kf4 {[%emt 0:01:03]} 61. Kd3 {[%emt 0:00:00]} Kg5 {[%emt 0:01:09]} 62. c3 {[%emt 0:00:00]} Ba3 {[%emt 0:00:10]} 63. Kc2 {[%emt 0:00:00]} Kf4 {[%emt 0:00:31]} 64. Kb1 {[%emt 0:00:00]} Kg5 {[%emt 0:00:24]} 65. Ka2 {[%emt 0:00:00]} Bc1 {[%emt 0:00:11]} 66. Kb1 {[%emt 0:00:00]} Ba3 {[%emt 0:01:09]} 67. Kc2 {[%emt 0:00:00]} Kf4 {[%emt 0:00:52]} 68. Kd3 {[%emt 0:00:00]} Bc1 {[%emt 0:00:14]} 69. Bc8 {[%emt 0:00:00]} Kg5 {[%emt 0:00:38]} 70. Kc4 {[%emt 0:00:00]} Bd2 {[%emt 0:00:33]} 71. Bd7 {[%emt 0:00:00]} Kf4 {[%emt 0:00:19]} 72. Kd3 {[%emt 0:00:00]} Be1 {[%emt 0:00:27]} 73. Kc4 {[%emt 0:00:00]} Bd2 {[%emt 0:00:19]} 74. Kd3 {[%emt 0:00:00]} Be1 {[%emt 0:00:09]} 75. Kc4 {[%emt 0:00:00]} Bd2 {[%emt 0:00:15]} 1/2-1/2